bitfinex-derivatives/quotes_SOLF0:USTF0_20260306
["timestamp","ask_amount","ask_price","bid_price","bid_amount"]
[1772802788167,6.94107629,86.572,86.528,6.71212308]
[1772802788357,6.94107629,86.572,86.53,2.84168007]
[1772802789067,6.94107629,86.572,86.53,9.55380315]
[1772802789259,6.94107629,86.572,86.531,6.71212308]
[1772802789455,6.94107629,86.572,86.516,21.48430444]
[1772802789456,6.94107629,86.585,86.54,2.84168007]
[1772802790865,10.395,86.583,86.54,2.84168007]
[1772802791166,6.94107629,86.582,86.54,2.84168007]
[1772802791470,6.94107629,86.582,86.534,6.71212308]
[1772802791661,6.94107629,86.582,86.54,2.84168007]
[1772802792664,6.94107629,86.579,86.54,2.84168007]
[1772802793070,10.395,86.578,86.54,2.84168007]
[1772802794170,10.394,86.586,86.541,6.71212308]
[1772802794471,6.94107629,86.592,86.511,21.48430444]
[1772802794472,6.94107629,86.589,86.511,6.71212308]
[1772802794771,6.94107629,86.572,86.53,2.84168007]
[1772802794972,6.94107629,86.572,86.531,6.71212308]
[1772802796372,10.395,86.579,86.532,6.71212308]
[1772802796568,10.394,86.589,86.55,9.55380315]
[1772802796768,6.94107629,86.598,86.56,2.84168007]
[1772802797772,20.776,86.64,86.58,2.84168007]
[1772802797773,10.392,86.608,86.58,2.84168007]
[1772802798087,6.94107629,86.613,86.58,2.84168007]
[1772802799083,10.391,86.616,86.58,9.55380315]
[1772802799266,6.94107629,86.626,86.532,20.802]
[1772802799267,6.94107629,86.626,86.59,2.84168007]
[1772802799670,10.389,86.627,86.59,2.84168007]
[1772802799872,17.33007629,86.627,86.59,2.84168007]
[1772802800178,6.94107629,86.626,86.59,2.84168007]
[1772802800369,6.94107629,86.624,86.59,2.84168007]
[1772802800566,6.94107629,86.624,86.58,2.84168007]
[1772802801677,10.39,86.621,86.59,2.84168007]
[1772802806478,6.94107629,86.617,86.59,2.84168007]
[1772802806982,6.94107629,86.649,86.6,2.84168007]
[1772802807579,6.94107629,86.64,86.6,2.84168007]
[1772802808882,6.94107629,86.638,86.6,2.84168007]
[1772802809382,2.84168007,86.65,86.6,2.84168007]
[1772802809383,6.94107629,86.636,86.6,2.84168007]
[1772802810084,6.94107629,86.634,86.59,2.84168007]
[1772802810282,6.94107629,86.634,86.59,9.55380315]
[1772802811084,6.94107629,86.634,86.6,2.84168007]
[1772802811282,6.94107629,86.659,86.6,9.55380315]
[1772802812683,6.88648786,86.65,86.6,9.55380315]
[1772802813887,17.27348786,86.646,86.6,9.55380315]
[1772802814181,17.27348786,86.646,86.556,21.48430444]
[1772802814182,6.88648786,86.646,86.61,2.84168007]
[1772802814380,6.88648786,86.66,86.611,6.77221145]
[1772802814879,6.88648786,86.646,86.61,2.84168007]
[1772802815087,6.88648786,86.646,86.6,2.84168007]
[1772802815282,6.88648786,86.646,86.599,6.77221145]
[1772802817088,6.88648786,86.646,86.601,6.77221145]
[1772802818877,10.388,86.642,86.601,6.77221145]
[1772802819490,10.388,86.642,86.61,2.84168007]
[1772802820288,10.388,86.642,86.61,9.61389152]
[1772802821091,6.88648786,86.646,86.61,9.61389152]
[1772802821798,6.88648786,86.646,86.611,6.77221145]
[1772802822301,10.387,86.65,86.611,6.77221145]
[1772802822790,10.387,86.65,86.61,2.84168007]
[1772802822791,10.386,86.656,86.62,2.84168007]
[1772802823800,17.27248786,86.656,86.62,2.84168007]
[1772802824297,17.27248786,86.656,86.613,6.77221145]
[1772802824695,6.88648786,86.655,86.614,10.391]
[1772802824900,6.88648786,86.655,86.614,17.16321145]
[1772802825203,6.88648786,86.664,86.621,6.77221145]
[1772802825399,17.27148786,86.664,86.621,6.77221145]
[1772802825799,6.88648786,86.663,86.621,6.77221145]
[1772802825994,6.88648786,86.659,86.612,6.77221145]
[1772802826197,6.88648786,86.659,86.61,2.84168007]
[1772802827802,6.88648786,86.655,86.61,2.84168007]
[1772802828203,6.88648786,86.655,86.6,2.84168007]
[1772802828699,2.84168007,86.66,86.6,2.84168007]
[1772802828700,6.88648786,86.642,86.6,2.84168007]
[1772802829101,6.88648786,86.642,86.6,9.61389152]
[1772802829305,10.388,86.641,86.6,9.61389152]
[1772802830004,10.388,86.641,86.601,6.77221145]
[1772802831106,10.388,86.635,86.601,6.77221145]
[1772802833407,17.27448786,86.642,86.601,6.77221145]
[1772802833608,6.88648786,86.641,86.601,6.77221145]
[1772802835907,10.388,86.639,86.601,6.77221145]
[1772802836107,6.90431493,86.638,86.598,10.393]
[1772802836711,6.90431493,86.638,86.603,10.392]
[1772802837210,10.389,86.631,86.603,6.59610876]
[1772802837601,6.90431493,86.638,86.603,6.59610876]
[1772802838811,10.388,86.637,86.603,6.59610876]
[1772802841614,6.90431493,86.638,86.603,6.59610876]
[1772802842115,6.90431493,86.638,86.564,20.794]
[1772802842116,2.84218551,86.62,86.571,7.08044573]
[1772802842313,6.54995543,86.619,86.571,7.08044573]
[1772802842510,6.54995543,86.609,86.571,7.08044573]
[1772802846813,6.54995543,86.628,86.571,7.08044573]
[1772802847015,6.54995543,86.626,86.571,7.08044573]
[1772802847911,10.391,86.617,86.571,7.08044573]
[1772802848119,6.54995543,86.616,86.571,7.08044573]
[1772802849112,6.54995543,86.613,86.571,7.08044573]
[1772802849721,10.391,86.61,86.571,7.08044573]
[1772802850525,16.93995543,86.621,86.581,7.08044573]
[1772802852619,10.39,86.619,86.581,7.08044573]
[1772802852821,16.93995543,86.619,86.581,7.08044573]
[1772802853523,6.54995543,86.619,86.569,7.08044573]
[1772802854722,6.54995543,86.604,86.544,7.08044573]
[1772802854924,20.78,86.626,86.531,7.08044573]
[1772802854925,6.54995543,86.589,86.531,7.08044573]
[1772802855120,6.54995543,86.569,86.517,7.08044573]
[1772802855520,6.54995543,86.562,86.517,7.08044573]
[1772802856021,6.54995543,86.559,86.504,7.08044573]
[1772802856922,9.39214094,86.55,86.504,7.08044573]
[1772802857129,6.54995543,86.549,86.504,7.08044573]
[1772802858529,10.399,86.548,86.504,7.08044573]
[1772802859128,6.54995543,86.54,86.5,2.84218551]
[1772802860323,10.4,86.538,86.5,2.84218551]
[1772802860722,6.54995543,86.54,86.501,7.08044573]
[1772802862527,6.54995543,86.54,86.51,2.84218551]
[1772802863522,6.54995543,86.555,86.51,2.84218551]
[1772802864933,6.54995543,86.553,86.51,2.84218551]
[1772802865634,6.54995543,86.553,86.501,7.08044573]
[1772802866133,6.54995543,86.553,86.503,7.08044573]
[1772802866332,6.54995543,86.553,86.51,2.84218551]
[1772802867832,6.54995543,86.551,86.51,2.84218551]
[1772802869038,10.398,86.558,86.52,2.84218551]
[1772802869337,16.94795543,86.558,86.52,2.84218551]
[1772802870136,6.54995543,86.555,86.511,7.08044573]
[1772802871837,7.07085281,86.549,86.5,2.84218551]
[1772802872738,10.4,86.539,86.5,9.40744629]
[1772802873535,17.46985281,86.546,86.5,9.40744629]
[1772802873840,17.46985281,86.546,86.501,6.56526078]
[1772802874239,17.46985281,86.546,86.51,2.84218551]
[1772802874941,10.398,86.553,86.511,6.56526078]
[1772802875137,10.398,86.553,86.52,2.84218551]
[1772802876038,7.07085281,86.558,86.53,2.84218551]
[1772802876640,7.07085281,86.558,86.51,2.84218551]
[1772802877740,10.398,86.552,86.52,2.84218551]
[1772802878741,10.398,86.559,86.52,2.84218551]
[1772802879645,17.46885281,86.559,86.52,2.84218551]
[1772802879841,7.07085281,86.556,86.52,2.84218551]
[1772802880042,7.07085281,86.556,86.511,6.56526078]
[1772802880252,10.399,86.551,86.511,6.56526078]
[1772802881141,10.399,86.551,86.52,2.84218551]
[1772802882448,10.399,86.551,86.511,6.56526078]
[1772802882845,10.4,86.538,86.51,2.84218551]
[1772802883043,7.07085281,86.537,86.5,2.84218551]
[1772802884647,7.07085281,86.537,86.51,2.84218551]
[1772802885455,10.401,86.534,86.5,2.84218551]
[1772802885655,7.07085281,86.534,86.5,2.84218551]
[1772802886350,10.401,86.527,86.5,2.84218551]
[1772802886654,7.07085281,86.534,86.5,2.84218551]
[1772802887354,7.07085281,86.559,86.52,2.84218551]
[1772802888752,7.07085281,86.553,86.52,2.84218551]
[1772802889850,7.07085281,86.553,86.51,2.84218551]
[1772802890051,7.07085281,86.553,86.52,2.84218551]
[1772802894161,11.46658658,86.582,86.49,480.26465997]
[1772802894162,10.397,86.564,86.53,2.84218551]
[1772802894365,6.59444768,86.563,86.53,2.84218551]
[1772802894565,6.59444768,86.563,86.521,6.56526078]
[1772802895860,6.59444768,86.56,86.521,6.56526078]
[1772802896564,6.59444768,86.557,86.521,6.56526078]
[1772802896756,6.59444768,86.557,86.52,2.84218551]
[1772802896958,6.59444768,86.557,86.51,2.84218551]
[1772802897764,10.399,86.548,86.51,2.84218551]
[1772802898569,10.399,86.548,86.51,2.84803298]
[1772802900272,16.99344768,86.548,86.51,2.84803298]
[1772802900470,16.99344768,86.548,86.501,10.404]
[1772802900471,6.59444768,86.548,86.5,2.84803298]
[1772802901670,17.49159899,86.543,86.51,2.84803298]
[1772802902473,10.399,86.551,86.52,2.84803298]
[1772802905477,22.12972752,86.582,86.49,480.26465997]
[1772802905478,7.09259899,86.568,86.53,2.84803298]
[1772802906379,10.397,86.562,86.53,2.84803298]
[1772802906681,7.09259899,86.561,86.51,2.84803298]
[1772802906878,7.09259899,86.541,86.5,2.84803298]
[1772802907876,7.09259899,86.537,86.498,7.0294909]
[1772802908072,7.09259899,86.537,86.49,483.11269295]
[1772802908383,7.09259899,86.537,86.5,2.84803298]
[1772802908782,10.401,86.53,86.5,2.84803298]
[1772802909879,7.09259899,86.536,86.5,2.84803298]
[1772802911475,10.401,86.534,86.5,2.84803298]
[1772802911679,7.09259899,86.533,86.5,2.84803298]
[1772802912781,10.402,86.523,86.5,2.84803298]
[1772802913084,7.09259899,86.523,86.49,2.84803298]
[1772802916088,10.401,86.532,86.491,7.0294909]
[1772802916580,17.49359899,86.532,86.491,7.0294909]
[1772802916984,7.09259899,86.531,86.5,2.84803298]
[1772802919087,7.09259899,86.531,86.491,7.0294909]
[1772802919481,10.401,86.532,86.5,9.87752388]
[1772802919788,7.09259899,86.543,86.51,2.84803298]
[1772802920580,7.09259899,86.543,86.5,9.87752388]
[1772802921488,7.09259899,86.541,86.5,9.87752388]
[1772802922790,7.09259899,86.539,86.5,9.87752388]
[1772802923883,10.4,86.537,86.5,9.87752388]
[1772802925087,10.4,86.537,86.49,10.406]
[1772802925088,7.09259899,86.548,86.51,2.84803298]
[1772802926193,7.09259899,86.545,86.51,2.84803298]
[1772802927890,7.09259899,86.54,86.51,2.84803298]
[1772802928594,7.09259899,86.54,86.5,2.84803298]
[1772802928791,10.4,86.539,86.5,2.84803298]
[1772802930287,17.49259899,86.539,86.5,2.84803298]
[1772802931793,10.399,86.549,86.511,6.77762819]
[1772802932098,10.399,86.549,86.52,2.84803298]
[1772802933697,6.66580411,86.55,86.52,2.84803298]
[1772802934398,6.66580411,86.55,86.51,2.84803298]
[1772802934800,6.66580411,86.547,86.51,2.84803298]
[1772802935796,6.66580411,86.545,86.51,2.84803298]
[1772802936103,6.66580411,86.545,86.51,9.62566117]
[1772802937997,10.398,86.554,86.511,6.77762819]
[1772802938202,10.398,86.554,86.52,2.84803298]
[1772802938506,6.66580411,86.553,86.52,2.84803298]
[1772802939001,6.66580411,86.553,86.511,6.77762819]
[1772802939806,6.66580411,86.553,86.513,10.403]
[1772802940604,6.66580411,86.553,86.513,17.18062819]
[1772802943502,6.66580411,86.553,86.514,6.77762819]
[1772802945803,10.397,86.562,86.518,10.402]
[1772802946004,6.66580411,86.564,86.521,6.77762819]
[1772802946209,6.66580411,86.564,86.53,2.84803298]
[1772802946598,6.66580411,86.563,86.53,2.84803298]
[1772802947304,6.66580411,86.561,86.521,6.77762819]
[1772802947608,6.66580411,86.561,86.52,2.84803298]
[1772802949008,10.398,86.553,86.52,2.84803298]
[1772802950101,10.398,86.553,86.511,6.77762819]
[1772802952106,10.398,86.553,86.52,2.84803298]
[1772802952318,10.397,86.561,86.521,6.77762819]
[1772802952508,10.397,86.561,86.53,2.84803298]
[1772802952711,6.66580411,86.588,86.531,6.77762819]
[1772802952904,6.66580411,86.586,86.531,6.77762819]
[1772802953106,10.397,86.562,86.531,6.77762819]
[1772802954614,6.66580411,86.571,86.54,2.84803298]
[1772802955011,6.66580411,86.571,86.53,2.84803298]
[1772802955813,10.396,86.57,86.53,2.84803298]
[1772802956009,17.26697991,86.57,86.53,2.84803298]
[1772802956209,6.87097991,86.57,86.53,2.84803298]
[1772802957716,6.87097991,86.57,86.531,10.401]
[1772802957916,6.87097991,86.589,86.541,6.74234263]
[1772802958112,6.87097991,86.589,86.551,6.74234263]
[1772802959016,6.87097991,86.589,86.55,2.84803298]
[1772802959916,6.87097991,86.587,86.55,2.84803298]
[1772802960116,6.87097991,86.587,86.541,6.74234263]
[1772802960811,10.394,86.586,86.543,6.74234263]
[1772802961016,10.394,86.586,86.55,2.84578407]
[1772802961215,10.394,86.586,86.551,6.74234263]
[1772802962014,6.87295244,86.583,86.55,2.84578407]
[1772802962313,6.87295244,86.583,86.54,9.46688823]
[1772802962518,6.87295244,86.583,86.541,6.62110416]
[1772802963614,6.87295244,86.572,86.53,9.46688823]
[1772802963815,6.87295244,86.572,86.52,2.84578407]
[1772802964516,6.87295244,86.572,86.52,9.46688823]
[1772802964722,6.87295244,86.568,86.521,6.62110416]
[1772802966812,6.87295244,86.568,86.52,2.84578407]
[1772802966813,6.87295244,86.568,86.522,10.402]
[1772802967018,6.87295244,86.568,86.531,6.62110416]
[1772802968817,6.87295244,86.568,86.532,10.401]
[1772802969624,6.87295244,86.568,86.531,6.62110416]
[1772802973426,6.87295244,86.568,86.532,6.62110416]
[1772802973620,6.87295244,86.577,86.55,2.84578407]
[1772802974017,6.87295244,86.629,86.57,2.84578407]
[1772802974322,6.87295244,86.627,86.57,2.84578407]
[1772802974621,6.87295244,86.618,86.58,2.84578407]
[1772802975223,10.389,86.627,86.59,2.84578407]
[1772802976718,6.87295244,86.631,86.59,2.84578407]
[1772802978025,17.26195244,86.629,86.59,2.84578407]
[1772802981242,6.87295244,86.623,86.59,2.84578407]
[1772802981532,6.87295244,86.623,86.584,6.62110416]
[1772802982531,17.26295244,86.621,86.584,6.62110416]
[1772802982731,6.87295244,86.62,86.584,6.62110416]
[1772802982935,6.87295244,86.62,86.58,2.84578407]
[1772802985932,6.87295244,86.62,86.535,21.48430444]
[1772802985933,6.87295244,86.649,86.601,6.62110416]
[1772802986330,6.87295244,86.649,86.61,9.46688823]
[1772802987439,2.84578407,86.67,86.61,9.46688823]
[1772802987440,17.25995244,86.648,86.61,9.46688823]
[1772802987640,6.87295244,86.647,86.61,9.46688823]
[1772802990941,6.87295244,86.659,86.62,2.84578407]
[1772802991440,10.386,86.657,86.62,2.84578407]
[1772802991637,6.87295244,86.656,86.613,6.62110416]
[1772802992441,17.2387411,86.639,86.6,2.84578407]
[1772802992641,6.8507411,86.638,86.6,2.84578407]
[1772802993141,6.8507411,86.636,86.592,7.12517959]
[1772802993744,6.8507411,86.634,86.592,7.12517959]
[1772802993944,6.8507411,86.664,86.62,2.84578407]
[1772802994948,10.387,86.651,86.62,2.84578407]
[1772802995139,6.8507411,86.65,86.6,2.84578407]
[1772802995544,6.8507411,86.646,86.603,7.12517959]
[1772802996747,10.387,86.645,86.603,7.12517959]
[1772802997445,6.8507411,86.635,86.59,2.84578407]
[1772802998148,6.8507411,86.635,86.591,7.12517959]
[1772802998447,6.8507411,86.635,86.6,2.84578407]
[1772803001749,10.389,86.634,86.6,2.84578407]
[1772803002750,10.39,86.619,86.59,2.84578407]
[1772803003553,6.8507411,86.646,86.6,2.84578407]
[1772803004056,6.8507411,86.646,86.591,7.12517959]
[1772803004251,6.8507411,86.638,86.591,7.12517959]
[1772803005754,10.388,86.635,86.591,7.12517959]
[1772803005955,6.8507411,86.634,86.591,7.12517959]
[1772803007147,10.389,86.632,86.591,7.12517959]
[1772803007457,17.2397411,86.632,86.591,7.12517959]
[1772803008759,17.2407411,86.626,86.591,7.12517959]
[1772803008955,6.8507411,86.625,86.58,9.97096366]
[1772803009262,6.8507411,86.625,86.581,7.12517959]
[1772803009653,6.8507411,86.625,86.59,2.84578407]
[1772803009954,10.39,86.622,86.59,2.84578407]
[1772803010755,6.8507411,86.625,86.59,2.84578407]
[1772803010955,6.8507411,86.625,86.59,9.97096366]
[1772803011154,6.8507411,86.625,86.591,7.12517959]
[1772803011556,6.8507411,86.623,86.58,2.84578407]
[1772803012159,6.8507411,86.621,86.58,2.84578407]
[1772803012357,6.8507411,86.621,86.59,2.84578407]
[1772803012559,6.8507411,86.639,86.59,9.97096366]
[1772803013254,6.8507411,86.639,86.6,2.84578407]
[1772803013851,6.8507411,86.639,86.61,2.84578407]
[1772803014057,6.8507411,86.639,86.6,2.84578407]
[1772803014262,6.8507411,86.639,86.6,9.99550702]
[1772803015361,6.8507411,86.639,86.601,7.14972295]
[1772803017062,7.10733799,86.637,86.59,2.84578407]
[1772803018457,8.4969783,86.644,86.601,7.14972295]
[1772803018762,7.10733799,86.65,86.61,9.99550702]
[1772803019263,7.10733799,86.65,86.62,2.84578407]
[1772803019462,2.84578407,86.68,86.62,2.84578407]
[1772803019463,7.10733799,86.667,86.62,2.84578407]
[1772803019664,7.10733799,86.665,86.62,2.84578407]
[1772803019966,7.10733799,86.663,86.62,2.84578407]
[1772803020163,10.386,86.659,86.62,2.84578407]
[1772803020662,10.386,86.659,86.62,2.84061175]
[1772803024263,10.386,86.659,86.62,9.69490287]
[1772803028863,7.18520173,86.656,86.61,2.84061175]
[1772803029063,7.18520173,86.649,86.599,6.85429112]
[1772803029268,7.18520173,86.649,86.568,513.88493394]
[1772803029269,2.84061175,86.63,86.57,9.69490287]
[1772803029468,7.18520173,86.619,86.571,10.396]
[1772803030369,7.18520173,86.609,86.568,492.48580725]
[1772803031666,7.18520173,86.598,86.557,6.85429112]
[1772803031971,7.18520173,86.598,86.55,2.84061175]
[1772803032871,10.393,86.597,86.55,9.69490287]
[1772803033071,10.393,86.597,86.551,6.85429112]
[1772803034571,10.393,86.597,86.554,6.85429112]
[1772803034963,7.18520173,86.598,86.556,6.85429112]
[1772803035272,7.18520173,86.598,86.56,2.84061175]
[1772803036172,10.392,86.605,86.57,2.84061175]
[1772803036370,7.18520173,86.611,86.571,6.85429112]
[1772803043174,7.18520173,86.611,86.56,2.84061175]
[1772803043370,7.18520173,86.611,86.56,9.69490287]
[1772803043975,7.18520173,86.611,86.561,6.85429112]
[1772803044276,7.18520173,86.611,86.57,2.84061175]
[1772803044777,7.18520173,86.608,86.57,2.84061175]
[1772803045876,7.18520173,86.605,86.561,6.85429112]
[1772803046076,7.18520173,86.605,86.57,2.84061175]
[1772803047479,7.18520173,86.605,86.561,6.85429112]
[1772803047779,7.18520173,86.603,86.561,6.85429112]
[1772803048778,7.18520173,86.601,86.561,6.85429112]
[1772803049374,7.18520173,86.596,86.56,2.84061175]
[1772803049575,7.18520173,86.596,86.549,10.399]
[1772803049576,7.18520173,86.596,86.55,2.84061175]
[1772803049775,7.18520173,86.589,86.536,6.85429112]
[1772803049977,10.396,86.572,86.536,6.85429112]
[1772803051782,6.82190483,86.571,86.532,10.401]
[1772803052484,6.82190483,86.569,86.53,2.84061175]
[1772803053286,6.82190483,86.569,86.525,10.402]
[1772803053287,6.82190483,86.582,86.54,2.84061175]
[1772803054480,6.82190483,86.579,86.54,2.84061175]
[1772803055581,6.82190483,86.579,86.533,6.54926521]
[1772803055582,6.82190483,86.576,86.533,6.54926521]
[1772803055782,6.82190483,86.576,86.53,13.24161175]
[1772803056985,6.82190483,86.574,86.53,13.24161175]
[1772803057887,10.396,86.573,86.53,13.24161175]
[1772803058087,6.82190483,86.572,86.53,2.84061175]
[1772803058485,6.82190483,86.563,86.524,452.85556197]
[1772803059791,6.82190483,86.561,86.524,452.85556197]
[1772803060195,6.82190483,86.561,86.52,2.84061175]
[1772803061493,6.82190483,86.559,86.52,9.38987696]
[1772803061694,6.82190483,86.559,86.521,6.54926521]
[1772803061993,20.785,86.604,86.531,6.54926521]
[1772803061994,6.82190483,86.573,86.531,6.54926521]
[1772803063791,10.396,86.571,86.531,6.54926521]
[1772803064294,17.21790483,86.571,86.531,6.54926521]
[1772803066894,10.397,86.565,86.531,6.54926521]
[1772803069695,6.82190483,86.571,86.531,6.54926521]
[1772803069997,10.7416009,86.618,86.479,519.97280905]
[1772803069998,6.82190483,86.599,86.541,6.54926521]
[1772803070391,17.21590483,86.586,86.55,2.84061175]
[1772803071098,10.394,86.586,86.56,2.84061175]
[1772803071290,6.82190483,86.598,86.56,2.84061175]
[1772803071291,10.394,86.593,86.56,2.84061175]
[1772803074201,6.82190483,86.588,86.55,2.84061175]
[1772803074403,6.82190483,86.588,86.54,2.84061175]
[1772803074700,6.82190483,86.588,86.53,2.84061175]
[1772803074999,7.04859349,86.587,86.53,2.84061175]
[1772803075302,7.04859349,86.563,86.52,2.84061175]
[1772803075497,7.04859349,86.563,86.51,2.84061175]
[1772803075701,7.04859349,86.549,86.497,7.01898912]
[1772803076902,7.04859349,86.53,86.49,2.84061175]
[1772803079397,10.401,86.531,86.491,7.01898912]
[1772803079595,10.401,86.531,86.5,2.84061175]
[1772803080405,10.401,86.531,86.479,498.57368236]
[1772803080406,7.04859349,86.556,86.52,2.84061175]
[1772803080804,7.04859349,86.556,86.53,2.84061175]
[1772803081002,7.04859349,86.571,86.53,2.84061175]
[1772803082093,6.91452149,86.564,86.51,9.93882986]
[1772803082502,17.31252149,86.558,86.51,9.94623982]
[1772803082807,6.91452149,86.557,86.52,2.84802171]
[1772803083211,6.91452149,86.555,86.52,2.84802171]
[1772803083402,6.91452149,86.555,86.51,2.84802171]
[1772803085499,17.31352149,86.551,86.511,7.09821811]
[1772803085702,6.91452149,86.551,86.52,2.84802171]
[1772803086405,17.31352149,86.551,86.52,2.84802171]
[1772803087301,6.91452149,86.55,86.511,7.09821811]
[1772803087605,10.399,86.546,86.511,7.09821811]
[1772803088106,6.91452149,86.54,86.51,2.84802171]
[1772803088806,14.25596336,86.599,86.479,498.57368236]
[1772803088807,6.91452149,86.556,86.52,2.84802171]
[1772803090008,17.31252149,86.555,86.511,7.09821811]
[1772803090208,10.74339975,86.591,86.511,7.09821811]
[1772803090209,6.91452149,86.554,86.511,7.09821811]
[1772803090908,6.91452149,86.537,86.5,2.84802171]
[1772803091503,17.31452149,86.535,86.5,2.84802171]
[1772803091706,6.91452149,86.534,86.5,2.84802171]
[1772803092909,10.401,86.532,86.5,2.84802171]
[1772803093105,6.91452149,86.531,86.49,2.84802171]
[1772803093415,6.91452149,86.531,86.48,2.84802171]
[1772803093707,6.91452149,86.514,86.48,2.84802171]
[1772803093911,6.91452149,86.514,86.479,498.57368236]
[1772803094304,6.91452149,86.514,86.48,2.84802171]
[1772803094602,17.31752149,86.514,86.48,2.84802171]
[1772803095401,6.91452149,86.511,86.48,2.84802171]
[1772803095599,6.91452149,86.511,86.479,498.57368236]
[1772803095804,6.91452149,86.511,86.46,2.84802171]
[1772803096809,10.405,86.495,86.46,2.84802171]
[1772803097004,10.405,86.495,86.422,2.0122295]
[1772803097005,6.91452149,86.494,86.422,2.0122295]
[1772803097210,6.91452149,86.469,86.41,2.84802171]
[1772803097407,6.91452149,86.467,86.42,2.84802171]
[1772803097709,6.91452149,86.467,86.43,2.84802171]
[1772803098810,6.91452149,86.482,86.45,2.84802171]
[1772803099310,6.91452149,86.482,86.44,2.84802171]
[1772803100106,6.91452149,86.482,86.426,7.09821811]
[1772803100312,6.91452149,86.482,86.44,2.84802171]
[1772803100512,6.91452149,86.482,86.426,7.09821811]
[1772803102810,6.91452149,86.482,86.428,7.09821811]
[1772803103211,6.91452149,86.482,86.43,7.09821811]
[1772803103415,6.91452149,86.539,86.441,7.09821811]
[1772803103911,6.91452149,86.539,86.453,7.09821811]
[1772803104210,6.91452149,86.527,86.461,7.09821811]
[1772803104408,6.91452149,86.527,86.467,7.09821811]
[1772803105012,6.91452149,86.558,86.467,7.09821811]
[1772803105612,6.91452149,86.558,86.46,7.13160145]
[1772803105613,17.31452149,86.535,86.477,7.09821811]
[1772803106115,6.91452149,86.534,86.477,7.09821811]
[1772803106917,10.399,86.544,86.483,7.09821811]
[1772803107915,10.399,86.544,86.487,7.09821811]
[1772803108414,17.31352149,86.544,86.487,7.09821811]
[1772803108918,10.4,86.542,86.488,7.09821811]
[1772803110313,6.91452149,86.539,86.488,7.09821811]
[1772803111818,6.5964194,86.537,86.488,7.09821811]
[1772803113825,10.399,86.547,86.488,7.09821811]
[1772803114916,6.5964194,86.554,86.492,6.75314879]
[1772803115822,6.5964194,86.554,86.502,6.75314879]
[1772803118024,10.399,86.544,86.502,6.75314879]
[1772803118326,10.398,86.552,86.502,6.75314879]
[1772803118521,6.5964194,86.551,86.502,6.75314879]
[1772803119236,10.399,86.55,86.502,6.75314879]
[1772803119818,16.9954194,86.55,86.502,6.75314879]
[1772803121332,6.5964194,86.549,86.481,6.75314879]
[1772803122524,6.5964194,86.549,86.5,2.84889368]
[1772803122929,6.5964194,86.536,86.5,2.84889368]
[1772803123331,10.402,86.526,86.5,2.84889368]
[1772803123530,10.402,86.526,86.49,2.84889368]
[1772803125435,10.402,86.523,86.481,6.75314879]
[1772803125628,10.402,86.523,86.49,2.84889368]
[1772803125833,305.87776826,86.562,86.49,2.84889368]
[1772803125834,6.5964194,86.539,86.5,2.84889368]
[1772803126133,6.5964194,86.539,86.51,2.84889368]
[1772803126329,6.5964194,86.554,86.52,2.84889368]
[1772803129735,2.84889368,86.55,86.5,2.84889368]
[1772803129935,6.5964194,86.549,86.49,2.84889368]
[1772803130638,6.5964194,86.537,86.48,9.60204247]
[1772803130930,6.5964194,86.537,86.481,6.75314879]
[1772803131137,6.5964194,86.537,86.5,2.84889368]
[1772803131526,6.5964194,86.559,86.51,2.84889368]
[1772803132538,10.399,86.547,86.5,9.60204247]
[1772803132839,6.5964194,86.559,86.5,9.60204247]
[1772803133232,10.399,86.548,86.5,9.60204247]
[1772803133537,6.5964194,86.559,86.51,2.84889368]
[1772803133736,6.5964194,86.559,86.52,2.84889368]
[1772803134836,10.398,86.557,86.515,6.75314879]
[1772803136538,10.398,86.557,86.52,2.84889368]
[1772803138031,10.398,86.557,86.515,6.75314879]
[1772803139341,10.398,86.557,86.52,2.84889368]
[1772803139538,6.5964194,86.559,86.52,2.84889368]
[1772803139745,10.397,86.564,86.531,6.4136402]
[1772803142740,6.56082045,86.572,86.531,6.4136402]
[1772803142945,2.84685155,86.58,86.468,20.817]
[1772803142946,2.84685155,86.56,86.5,2.84685155]
[1772803143146,6.82306001,86.559,86.5,2.84685155]
[1772803143346,10.4,86.543,86.502,10.404]
[1772803143551,10.4,86.543,86.5,9.27330585]
[1772803144749,10.4,86.543,86.501,10.405]
[1772803146448,20.791,86.58,86.468,21.39912669]
[1772803146449,6.82306001,86.568,86.52,2.84685155]
[1772803146753,6.82306001,86.568,86.521,6.4264543]
[1772803147853,10.397,86.56,86.521,6.4264543]
[1772803148861,6.82306001,86.568,86.521,6.4264543]
[1772803149262,6.82306001,86.566,86.521,6.4264543]
[1772803150051,6.82306001,86.579,86.523,6.4264543]
[1772803150259,6.82306001,86.579,86.531,6.4264543]
[1772803150646,6.82306001,86.579,86.532,10.401]